Workbook

Sheet Menu
D3: SOLID WASTE
D4: SubMenu | J4: =[1]Menu!$I$4 -> SA RANDS
J5: =[1]Menu!$I$5 -> 2011

Sheet Instructions (hidden)

Sheet Summary Instructions
C3: SOLID WASTE - SUMMARY INSTRUCTIONS
D5: Capture anticipated and current Consumer information on this screen.
C8: Any cell with this background colour is a DATA INPUT cell.
C10: Data Required
C11: Consumer - | D11: EG Per Residence
C12: No of Collection Points - | D12: The number of collection points (current as well anticipated). | F12: Municipal specific DATA INPUT
C13: Current Actual Tariff - | D13: Tariff charged in the last financial year for each Consumer group.
D16: Capture the costs for the budget vote on this screen. AT THE BOTTOM OF THE PAGE: the Revenue (from previous years units of demand * tariff) is proportioned and allocated per consumer group as a % of the total revenue. The costs and subsidy is also proportioned according to this %.
C19: Any cell with this background colour is a DATA INPUT cell.
D22: The Primary baseline is calculated and then displayed on this screen.
D25: TOTAL RING FENCED COSTS
C26: Primary Baseline | D26: TOTAL NUMBER OF COLLECTION POINTS
D31: Input data for Strategic Decisions on this screen.
D32: Input data can be in the form of a number or a % change.
C34: Any cell with this background colour is an optional DATA INPUT cell.
D37: The Revised Tariff takes into account input from Strategic Decisions and revises the Tariff accordingly
D41: This screen compares the Current Actual Tariff and Revenue to the Revised Tariff and Revenue.
C44: % CHANGE | D44: Use the %Change column to increase or decrease the Revised Tariff. As you enter the % change the Tariff and Tevenue will change to reflect your input.
C46: Current Actual - Revised | D46: This column displays the difference between Tariffs together with a colour indicator.
C47: TARIFF
C49: PROFIT\LOSS | D49: This column displays the difference between Revenues together with a colour indicator.
C50: REVENUE

Sheet Data Capture Demand
C3: =Menu!D3&" - DATA CAPTURE: DEMAND PER MONTH" -> SOLID WASTE - DATA CAPTURE: DEMAND PER MONTH
C5: FUTURE DEMAND | F5: HISTORICAL DEMAND
C7: ="Financial Year:"&" "&Menu!$J$5&"\"&Menu!$J$5+1 -> Financial Year: 2011\2012 | F7: =SUM(Menu!$J$5-1)&"\"&SUM(Menu!$J$5) -> 2010\2011
C8: CONSUMER | D8: NO OF COLLECTION POINTS | F8: NO OF COLLECTION POINTS | G8: CURRENT ACTUAL TARIFF per Month
C9: DOMESTIC
C10: Residential | D10: 10000 | F10: 10000 | G10: 80 | M10: =F10*G10 -> 800000
C11: Other | D11: 0 | F11: 0 | G11: 0 | M11: =F11*G11 -> 0
C12: Other | D12: 0 | F12: 0 | G12: 0 | M12: 0
C13: Other | D13: 0 | F13: 0 | G13: 0 | M13: 0
C14: Other | D14: 0 | F14: 0 | G14: 0 | M14: 0
C15: Other | D15: 0 | F15: 0 | G15: 0 | M15: 0
C16: Total No of Collection Points | D16: =SUM(D10:D15) -> 10000 | F16: =SUM(F10:F15) -> 10000 | M16: =SUM(M10:M15) -> 800000
C18: INDUSTRIAL
C19: Big Factory | D19: 1000 | F19: 1000 | G19: 300 | M19: =F19*G19 -> 300000
C20: Small Factory | D20: 200 | F20: 200 | G20: 200 | M20: 40000
C21: Type 3 | D21: 0 | F21: 0 | G21: 0 | M21: 0
C22: Type 4 | D22: 0 | F22: 0 | G22: 0 | M22: 0
C23: Type 5 | D23: 0 | F23: 0 | G23: 0 | M23: 0
C24: Type 6 | D24: 0 | F24: 0 | G24: 0 | M24: 0
C25: Type 7 | D25: 0 | F25: 0 | G25: 0 | M25: 0
C26: Type 8 | D26: 0 | F26: 0 | G26: 0 | M26: 0
C27: Type 9 | D27: 0 | F27: 0 | G27: 0 | M27: 0
C28: Total No of Collection Points | D28: =SUM(D19:D27) -> 1200 | F28: =SUM(F19:F27) -> 1200 | M28: =SUM(M19:M27) -> 340000
C30: COMMERCIAL
C31: Type 1 | D31: 0 | F31: 0 | G31: 0 | M31: =F31*G31 -> 0
C32: Type 2 | D32: 0 | F32: 0 | G32: 0 | M32: 0
C33: Type 3 | D33: 0 | F33: 0 | G33: 0 | M33: 0
C34: Type 4 | D34: 0 | F34: 0 | G34: 0 | M34: 0
C35: Type 5 | D35: 0 | F35: 0 | G35: 0 | M35: 0
C36: Total No of Collection Points | D36: =SUM(D31:D35) -> 0 | F36: =SUM(F31:F35) -> 0 | M36: =SUM(M31:M35) -> 0
C38: INSTITUTIONAL
C39: Prison | D39: 2 | F39: 2 | G39: 1250 | M39: =F39*G39 -> 2500
C40: Municipal | D40: 20 | F40: 20 | G40: 1250 | M40: 25000
C41: Other | D41: 0 | F41: 0 | G41: 0 | M41: 0
C42: Other | D42: 0 | F42: 0 | G42: 0 | M42: 0
C43: Other | D43: 0 | F43: 0 | G43: 0 | M43: 0
C44: Other | D44: 0 | F44: 0 | G44: 0 | M44: 0
C45: Other | D45: 0 | F45: 0 | G45: 0 | M45: 0
C46: Other | D46: 0 | F46: 0 | G46: 0 | M46: 0
C47: Other | D47: 0 | F47: 0 | G47: 0 | M47: 0
C48: Other | D48: 0 | F48: 0 | G48: 0 | M48: 0
C49: Total No of Collection Points | D49: =SUM(D39:D48) -> 22 | F49: =SUM(F39:F48) -> 22 | M49: =SUM(M39:M48) -> 27500
C51: TOTAL NO OF COLLECTION POINTS | D51: =SUM(D16+D28+D36+D49) -> 11222 | F51: =SUM(F16+F28+F36+F49) -> 11222

Sheet Data Capture Costs
AW1: 0
AW2: 0.01
C3: =Menu!D3&" - DATA CAPTURE: COSTS BY BUDGET VOTE" -> SOLID WASTE - DATA CAPTURE: COSTS BY BUDGET VOTE | AW3: 0.02
AW4: 0.08
C5: COSTS BY BUDGET VOTE | D5: =Menu!$J$4 -> SA RANDS | AW5: 0.09
C6: Costs | D6: Detail | E6: ="Year"&" "&Menu!$J$5&"\"&Menu!$J$5+1 -> Year 2011\2012 | AW6: 0.1
C7: Bulk Purchases: | E7: 0 | AW7: 0.11
C8: Employee Related Costs: | D8: Basic Salaries | E8: 6000000 | AW8: 0.12
C9: Employee Related Costs: | D9: Social Contributions | E9: 2000000 | AW9: 0.13
C10: Repairs and Maintenance | D10: Repairs and Maintenance | E10: 500000 | AW10: 0.14
C11: Other Costs: | E11: 0 | AW11: 0.15
C12: Other Costs: | E12: 0 | AW12: 0.16
C13: Other Cost: | E13: 0 | AW13: 0.17
C14: Other Costs: | E14: 0 | AW14: 0.18
C15: Other Costs: | E15: 0 | AW15: 0.19
C16: Other Costs: | E16: 0 | AW16: 0.2
C17: Depreciation: | E17: 0 | AW17: 0.21
C18: External Interest: | E18: 0 | AW18: 0.22
C19: Reserves\Provisions for Capital Improvements: | E19: 0 | AW19: 0.23
C20: Contracted Services | D20: Management of Landfill site | E20: 2500000 | AW20: 0.24
C21: Contracted Services | D21: Refuse Collection | E21: 3000000 | AW21: 0.25
C22: Other Costs: | D22: General Expenses | E22: 750000 | AW22: 0.26
C23: Other Costs: | E23: 0 | AW23: 0.27
C24: Other Costs: | E24: 0 | AW24: 0.28
C25: Other Costs: | E25: 0 | AW25: 0.29
C26: Overhead Costs Re-Allocated (+) | D26: Portion of council, finance and HR | E26: 750000 | AW26: 0.3
C27: Overhead Costs Re-Allocated (-) | D27: Less | E27: 0 | AW27: 0.31
C28: Less Sundry Income | D28: Less Sundry Income Generated from Indirect Services | E28: 0 | AW28: 0.32
C29: TOTAL RING FENCED COSTS PER ANNUM | E29: =SUM(E7:E26)-E27-E28 -> 15500000 | AW29: 0.33
AW30: 0.34
C31: TOTAL RING FENCED COSTS PER MONTH | E31: =E29/12 -> 1291666.667 | AW31: 0.35
C33: COST APPORTIONMENT FOR MULTIPLE PRIMARY BASELINES | J33: Subsidy % | AW33: 0.39
C34: PRIOR YEAR - REVENUE PER CONSUMER GROUP | E34: REVENUE | G34: % of Revenue per Consumer Group | H34: Cost Allocated by Revenue | I34: Subsidy Amt | J34: =E31*'Strategic Decisions'!J18% -> 0 | K34: Revenue plus Subsidy % | AW34: 0.4
C35: ='Data Capture Demand'!C9 -> DOMESTIC | E35: ='Data Capture Demand'!M16 -> 800000 | G35: =IF(E35=0,0,E35/$E$39) -> 0.6852248394 | H35: =$E$31*G35 -> 885082.0842 | I35: =G35*'Strategic Decisions'!$J$16 -> 0 | J35: =G35*$J$34 -> 0 | K35: =SUM(H35+I35+J35) -> 885082.0842 | AW35: 0.41
C36: ='Data Capture Demand'!C18 -> INDUSTRIAL | E36: ='Data Capture Demand'!M28 -> 340000 | G36: =IF(E36=0,0,E36/$E$39) -> 0.2912205567 | H36: =$E$31*G36 -> 376159.8858 | I36: =G36*'Strategic Decisions'!$J$16 -> 0 | J36: =G36*$J$34 -> 0 | K36: =SUM(H36+I36+J36) -> 376159.8858 | AW36: 0.42
C37: ='Data Capture Demand'!C30 -> COMMERCIAL | E37: ='Data Capture Demand'!M36 -> 0 | G37: 0 | H37: 0 | I37: =G37*'Strategic Decisions'!$J$16 -> 0 | J37: 0 | K37: =SUM(H37+I37+J37) -> 0 | AW37: 0.43
C38: ='Data Capture Demand'!C38 -> INSTITUTIONAL | E38: ='Data Capture Demand'!M49 -> 27500 | G38: 0.02355460385 | H38: 30424.69665 | I38: =G38*'Strategic Decisions'!$J$16 -> 0 | J38: 0 | K38: =SUM(H38+I38+J38) -> 30424.69665 | AW38: 0.44
C39: TOTAL REVENUE | E39: =SUM(E35:E38) -> 1167500 | G39: =SUM(G35:G38) -> 1 | H39: =SUM(H35:H38) -> 1291666.667 | I39: =SUM(I35:I38) -> 0 | J39: =SUM(J35:J38) -> 0 | K39: =SUM(K35:K38) -> 1291666.667 | AW39: 0.55
AW40: 0.56
AW41: 0.57
AW42: 0.78
AW43: 0.79
AW44: 0.8
AW45: 0.81
AW46: 0.82
AW47: 0.83
AW48: 0.84
AW49: 0.85
AW50: 0.86
AW51: 0.87
AW52: 0.88
AW53: 0.89
AW54: 0.9
AW55: 0.91
AW56: 0.92
AW57: 0.93
AW58: 0.94
AW59: 0.95
AW60: 0.96
AW61: 0.97
AW62: 0.98
AW63: 0.99
AW64: 1

Sheet Primary Baseline Tariff
C3: PRIMARY BASELINE TARIFF
C5: Below is a basic tariff calculated per baseline unit.
C7: CONSUMER GROUP | D7: TARIFF
C8: ='Data Capture Costs'!C35 -> DOMESTIC | D8: =IF('Data Capture Demand'!D16=0,0,'Data Capture Costs'!H35/'Data Capture Demand'!D16) -> 88.50820842
C9: ='Data Capture Costs'!C36 -> INDUSTRIAL | D9: =IF('Data Capture Demand'!D28=0,0,'Data Capture Costs'!H36/'Data Capture Demand'!D28) -> 313.4665715
C10: ='Data Capture Costs'!C37 -> COMMERCIAL | D10: =IF('Data Capture Demand'!D36=0,0,'Data Capture Costs'!H37/'Data Capture Demand'!D36) -> 0
C11: ='Data Capture Costs'!C38 -> INSTITUTIONAL | D11: =IF('Data Capture Demand'!D49=0,0,'Data Capture Costs'!H38/'Data Capture Demand'!D49) -> 1382.940757

Sheet Strategic Decisions
BD1: Yes
C3: STRATEGIC DECISIONS | J3: CHANGES TO VARIABLE COSTS
BD4: No
C5: FINANCIAL DECISIONS | D5: MONTHLY AMOUNT | E5: % | F5: % AMT | J5: =D8+F8 -> 0
B6: 1 | C6: Do you wish to achieve a Surplus on this service? | D6: YES | J6: =D12+F12 -> 0
D7: NO | J7: =D18+F18 -> 0
C8: Enter Size of the Surplus | E8: 0 | F8: =E8%*'Data Capture Costs'!E31 -> 0 | J8: =J5-J6+J7 -> 0
B10: 2 | C10: Are you willing to make a Deficit on this service? | D10: YES
D11: NO
C12: Enter Size of the Deficit | D12: 0 | E12: 0 | F12: =-(E12%)*'Data Capture Costs'!E31 -> 0
C14: AFFORDABILITY DECISIONS | D14: MONTHLY AMOUNT | E14: % | F14: % AMT
C15: Most of these decisions are contained in the municipality's Tariff policy and therefore already form part of the information used to populate the model. However the decisions can at this point be re-visited and altered as necessary before the tariff is finalised. | J15: SUBSIDY AMOUNT
B16: 3 | C16: Do you plan to subsidise the delivery of this service (excluding Free Basic Services)? | D16: YES | J16: =D8-D12+D18 -> 0
D17: NO | J17: SUBSIDY %
C18: Enter Size of Subsidy | D18: 0 | E18: 0 | F18: =E18%*'Data Capture Costs'!E31 -> 0 | J18: =E8-E12+E18 -> 0
B20: 4 | C20: Do you wish to limit the Size of the Tariff levied on certain type of consumers? | D20: CHANGE TARIFF
B23: 5 | C23: Do you wish to Escalate the Tariff levied on certain type of consumers? | D23: CHANGE TARIFF

Sheet Revised Primary Baseline Tariff
C3: REVISED PRIMARY BASELINE TARIFF
C5: After Strategic Decisions this is the revised tariff.
C7: CONSUMER GROUPS | D7: TARIFF
C8: ='Data Capture Costs'!C35:D35 -> DOMESTIC | D8: =IF('Data Capture Demand'!D16=0,0,'Data Capture Costs'!K35/'Data Capture Demand'!D16) -> 88.50820842
C9: ='Data Capture Costs'!C36:D36 -> INDUSTRIAL | D9: =IF('Data Capture Demand'!D28=0,0,'Data Capture Costs'!K36/'Data Capture Demand'!D28) -> 313.4665715
C10: ='Data Capture Costs'!C37:D37 -> COMMERCIAL | D10: =IF('Data Capture Demand'!D36=0,0,'Data Capture Costs'!K37/'Data Capture Demand'!D36) -> 0
C11: ='Data Capture Costs'!C38:D38 -> INSTITUTIONAL | D11: =IF('Data Capture Demand'!D49=0,0,'Data Capture Costs'!K38/'Data Capture Demand'!D49) -> 1382.940757

Sheet Test Revised Primary Baseline
C3: CURRENT & REVISED TARIFF COMPARISON MONTHLY
C5: ='Data Capture Demand'!C8 -> CONSUMER | D5: ='Data Capture Demand'!D8&" ("&Menu!J5&")" -> NO OF COLLECTION POINTS (2011) | E5: CURRENT ACTUAL | G5: REVISED TARIFF | J5: AFFORDABILITY ADJUSTMENT TO REVISED PRIMARY BASELINE | N5: Current Actual MINUS Revised | O5: PROFIT\LOSS
E6: TARIFF | F6: REVENUE | G6: TARIFF | H6: REVENUE | J6: % CHANGE | K6: TARIFF | L6: REVENUE | N6: Change | O6: REVENUE
C7: =IF('Data Capture Demand'!C10="","",'Data Capture Demand'!C10) -> Residential | D7: ='Data Capture Demand'!D10 -> 10000 | E7: ='Data Capture Demand'!G10 -> 80 | F7: =SUM(E7*'Data Capture Demand'!F10) -> 800000 | G7: ='Revised Primary Baseline Tariff'!$D$8 -> 88.50820842 | H7: =SUM(D7*G7) -> 885082.0842 | I7: 0 | J7: 0 | K7: =SUM(G7*J7%)+G7 -> 88.50820842 | L7: =D7*K7 -> 885082.0842 | N7: =K7-E7 -> 8.508208423 | O7: =L7-F7 -> 85082.08423
C8: =IF('Data Capture Demand'!C11="","",'Data Capture Demand'!C11) -> Other | D8: ='Data Capture Demand'!D11 -> 0 | E8: ='Data Capture Demand'!G11 -> 0 | F8: =SUM(E8*'Data Capture Demand'!F11) -> 0 | G8: ='Revised Primary Baseline Tariff'!$D$8 -> 88.50820842 | H8: 0 | I8: 0 | J8: 0 | K8: 88.50820842 | L8: 0 | N8: =K8-E8 -> 88.50820842 | O8: =L8-F8 -> 0
C9: =IF('Data Capture Demand'!C12="","",'Data Capture Demand'!C12) -> Other | D9: ='Data Capture Demand'!D12 -> 0 | E9: ='Data Capture Demand'!G12 -> 0 | F9: =SUM(E9*'Data Capture Demand'!F12) -> 0 | G9: ='Revised Primary Baseline Tariff'!$D$8 -> 88.50820842 | H9: 0 | I9: 0 | J9: 0 | K9: 88.50820842 | L9: 0 | N9: =K9-E9 -> 88.50820842 | O9: 0
C10: =IF('Data Capture Demand'!C13="","",'Data Capture Demand'!C13) -> Other | D10: ='Data Capture Demand'!D13 -> 0 | E10: ='Data Capture Demand'!G13 -> 0 | F10: =SUM(E10*'Data Capture Demand'!F13) -> 0 | G10: ='Revised Primary Baseline Tariff'!$D$8 -> 88.50820842 | H10: 0 | I10: 0 | J10: 0 | K10: 88.50820842 | L10: 0 | N10: =K10-E10 -> 88.50820842 | O10: 0
C11: =IF('Data Capture Demand'!C14="","",'Data Capture Demand'!C14) -> Other | D11: ='Data Capture Demand'!D14 -> 0 | E11: ='Data Capture Demand'!G14 -> 0 | F11: =SUM(E11*'Data Capture Demand'!F14) -> 0 | G11: ='Revised Primary Baseline Tariff'!$D$8 -> 88.50820842 | H11: 0 | I11: 0 | J11: 0 | K11: 88.50820842 | L11: 0 | N11: =K11-E11 -> 88.50820842 | O11: 0
C12: =IF('Data Capture Demand'!C15="","",'Data Capture Demand'!C15) -> Other | D12: ='Data Capture Demand'!D15 -> 0 | E12: ='Data Capture Demand'!G15 -> 0 | F12: =SUM(E12*'Data Capture Demand'!F15) -> 0 | G12: ='Revised Primary Baseline Tariff'!$D$8 -> 88.50820842 | H12: 0 | I12: 0 | J12: 0 | K12: 88.50820842 | L12: 0 | N12: =K12-E12 -> 88.50820842 | O12: 0
C13: ='Data Capture Demand'!C9&" TOTAL" -> DOMESTIC TOTAL | D13: =SUM(D7:D12) -> 10000 | F13: =SUM(F7:F12) -> 800000 | H13: =SUM(H7:H12) -> 885082.0842 | L13: =SUM(L7:L12) -> 885082.0842 | O13: =SUM(O7:O12) -> 85082.08423
C14: =IF('Data Capture Demand'!C19="","",'Data Capture Demand'!C19) -> Big Factory | D14: ='Data Capture Demand'!D19 -> 1000 | E14: ='Data Capture Demand'!G19 -> 300 | F14: =SUM(E14*'Data Capture Demand'!F19) -> 300000 | G14: ='Revised Primary Baseline Tariff'!$D$9 -> 313.4665715 | H14: =SUM(D14*G14) -> 313466.5715 | I14: 0 | J14: 0 | K14: =SUM(G14*J14%)+G14 -> 313.4665715 | L14: =D14*K14 -> 313466.5715 | N14: =K14-E14 -> 13.4665715 | O14: =L14-F14 -> 13466.5715
C15: =IF('Data Capture Demand'!C20="","",'Data Capture Demand'!C20) -> Small Factory | D15: ='Data Capture Demand'!D20 -> 200 | E15: ='Data Capture Demand'!G20 -> 200 | F15: =SUM(E15*'Data Capture Demand'!F20) -> 40000 | G15: ='Revised Primary Baseline Tariff'!$D$9 -> 313.4665715 | H15: 62693.3143 | I15: 0 | J15: 0 | K15: 313.4665715 | L15: 62693.3143 | N15: 113.4665715 | O15: 22693.3143
C16: =IF('Data Capture Demand'!C21="","",'Data Capture Demand'!C21) -> Type 3 | D16: ='Data Capture Demand'!D21 -> 0 | E16: ='Data Capture Demand'!G21 -> 0 | F16: =SUM(E16*'Data Capture Demand'!F21) -> 0 | G16: ='Revised Primary Baseline Tariff'!$D$9 -> 313.4665715 | H16: 0 | I16: 0 | J16: 0 | K16: 313.4665715 | L16: 0 | N16: 313.4665715 | O16: 0
C17: =IF('Data Capture Demand'!C22="","",'Data Capture Demand'!C22) -> Type 4 | D17: ='Data Capture Demand'!D22 -> 0 | E17: ='Data Capture Demand'!G22 -> 0 | F17: =SUM(E17*'Data Capture Demand'!F22) -> 0 | G17: ='Revised Primary Baseline Tariff'!$D$9 -> 313.4665715 | H17: 0 | I17: 0 | J17: 0 | K17: 313.4665715 | L17: 0 | N17: 313.4665715 | O17: 0
C18: =IF('Data Capture Demand'!C23="","",'Data Capture Demand'!C23) -> Type 5 | D18: ='Data Capture Demand'!D23 -> 0 | E18: ='Data Capture Demand'!G23 -> 0 | F18: =SUM(E18*'Data Capture Demand'!F23) -> 0 | G18: ='Revised Primary Baseline Tariff'!$D$9 -> 313.4665715 | H18: 0 | I18: 0 | J18: 0 | K18: 313.4665715 | L18: 0 | N18: 313.4665715 | O18: 0
C19: =IF('Data Capture Demand'!C24="","",'Data Capture Demand'!C24) -> Type 6 | D19: ='Data Capture Demand'!D24 -> 0 | E19: ='Data Capture Demand'!G24 -> 0 | F19: =SUM(E19*'Data Capture Demand'!F24) -> 0 | G19: ='Revised Primary Baseline Tariff'!$D$9 -> 313.4665715 | H19: 0 | I19: 0 | J19: 0 | K19: 313.4665715 | L19: 0 | N19: 313.4665715 | O19: 0
C20: =IF('Data Capture Demand'!C25="","",'Data Capture Demand'!C25) -> Type 7 | D20: ='Data Capture Demand'!D25 -> 0 | E20: ='Data Capture Demand'!G25 -> 0 | F20: =SUM(E20*'Data Capture Demand'!F25) -> 0 | G20: ='Revised Primary Baseline Tariff'!$D$9 -> 313.4665715 | H20: 0 | I20: 0 | J20: 0 | K20: 313.4665715 | L20: 0 | N20: 313.4665715 | O20: 0
C21: =IF('Data Capture Demand'!C26="","",'Data Capture Demand'!C26) -> Type 8 | D21: ='Data Capture Demand'!D26 -> 0 | E21: ='Data Capture Demand'!G26 -> 0 | F21: =SUM(E21*'Data Capture Demand'!F26) -> 0 | G21: ='Revised Primary Baseline Tariff'!$D$9 -> 313.4665715 | H21: 0 | I21: 0 | J21: 0 | K21: 313.4665715 | L21: 0 | N21: 313.4665715 | O21: 0
C22: =IF('Data Capture Demand'!C27="","",'Data Capture Demand'!C27) -> Type 9 | D22: ='Data Capture Demand'!D27 -> 0 | E22: ='Data Capture Demand'!G27 -> 0 | F22: =SUM(E22*'Data Capture Demand'!F27) -> 0 | G22: ='Revised Primary Baseline Tariff'!$D$9 -> 313.4665715 | H22: 0 | I22: 0 | J22: 0 | K22: 313.4665715 | L22: 0 | N22: 313.4665715 | O22: 0
C23: ='Data Capture Demand'!C18&" TOTAL" -> INDUSTRIAL TOTAL | D23: =SUM(D14:D22) -> 1200 | F23: =SUM(F14:F22) -> 340000 | H23: =SUM(H14:H22) -> 376159.8858 | L23: =SUM(L14:L22) -> 376159.8858 | O23: =SUM(O14:O22) -> 36159.8858
C24: =IF('Data Capture Demand'!C31="","",'Data Capture Demand'!C31) -> Type 1 | D24: ='Data Capture Demand'!D31 -> 0 | E24: ='Data Capture Demand'!G31 -> 0 | F24: =SUM(E24*'Data Capture Demand'!F31) -> 0 | G24: ='Revised Primary Baseline Tariff'!$D$10 -> 0 | H24: =SUM(D24*G24) -> 0 | I24: 0 | J24: 0 | K24: =SUM(G24*J24%)+G24 -> 0 | L24: =D24*K24 -> 0 | N24: =K24-E24 -> 0 | O24: =L24-F24 -> 0
C25: =IF('Data Capture Demand'!C32="","",'Data Capture Demand'!C32) -> Type 2 | D25: ='Data Capture Demand'!D32 -> 0 | E25: ='Data Capture Demand'!G32 -> 0 | F25: =SUM(E25*'Data Capture Demand'!F32) -> 0 | G25: ='Revised Primary Baseline Tariff'!$D$10 -> 0 | H25: =SUM(D25*G25) -> 0 | I25: 0 | J25: 0 | K25: =SUM(G25*J25%)+G25 -> 0 | L25: =D25*K25 -> 0 | N25: =K25-E25 -> 0 | O25: 0
C26: =IF('Data Capture Demand'!C33="","",'Data Capture Demand'!C33) -> Type 3 | D26: ='Data Capture Demand'!D33 -> 0 | E26: ='Data Capture Demand'!G33 -> 0 | F26: =SUM(E26*'Data Capture Demand'!F33) -> 0 | G26: ='Revised Primary Baseline Tariff'!$D$10 -> 0 | H26: =SUM(D26*G26) -> 0 | I26: 0 | J26: 0 | K26: =SUM(G26*J26%)+G26 -> 0 | L26: =D26*K26 -> 0 | N26: =K26-E26 -> 0 | O26: 0
C27: =IF('Data Capture Demand'!C34="","",'Data Capture Demand'!C34) -> Type 4 | D27: ='Data Capture Demand'!D34 -> 0 | E27: ='Data Capture Demand'!G34 -> 0 | F27: =SUM(E27*'Data Capture Demand'!F34) -> 0 | G27: ='Revised Primary Baseline Tariff'!$D$10 -> 0 | H27: =SUM(D27*G27) -> 0 | I27: 0 | J27: 0 | K27: =SUM(G27*J27%)+G27 -> 0 | L27: =D27*K27 -> 0 | N27: =K27-E27 -> 0 | O27: 0
C28: =IF('Data Capture Demand'!C35="","",'Data Capture Demand'!C35) -> Type 5 | D28: ='Data Capture Demand'!D35 -> 0 | E28: ='Data Capture Demand'!G35 -> 0 | F28: =SUM(E28*'Data Capture Demand'!F35) -> 0 | G28: ='Revised Primary Baseline Tariff'!$D$10 -> 0 | H28: =SUM(D28*G28) -> 0 | I28: 0 | J28: 0 | K28: =SUM(G28*J28%)+G28 -> 0 | L28: =D28*K28 -> 0 | N28: =K28-E28 -> 0 | O28: 0
C29: ='Data Capture Demand'!C30&" TOTAL" -> COMMERCIAL TOTAL | D29: =SUM(D24:D28) -> 0 | F29: =SUM(F24:F28) -> 0 | H29: =SUM(H24:H28) -> 0 | L29: =SUM(L24:L28) -> 0 | O29: =SUM(O24:O28) -> 0
C30: =IF('Data Capture Demand'!C39="","",'Data Capture Demand'!C39) -> Prison | D30: ='Data Capture Demand'!D39 -> 2 | E30: ='Data Capture Demand'!G39 -> 1250 | F30: =SUM(E30*'Data Capture Demand'!F39) -> 2500 | G30: ='Revised Primary Baseline Tariff'!$D$11 -> 1382.940757 | H30: =SUM(D30*G30) -> 2765.881513 | I30: 0 | J30: 0 | K30: =SUM(G30*J30%)+G30 -> 1382.940757 | L30: =D30*K30 -> 2765.881513 | N30: =K30-E30 -> 132.9407566 | O30: =L30-F30 -> 265.8815132
C31: =IF('Data Capture Demand'!C40="","",'Data Capture Demand'!C40) -> Municipal | D31: ='Data Capture Demand'!D40 -> 20 | E31: ='Data Capture Demand'!G40 -> 1250 | F31: =SUM(E31*'Data Capture Demand'!F40) -> 25000 | G31: ='Revised Primary Baseline Tariff'!$D$11 -> 1382.940757 | H31: 27658.81513 | I31: 0 | J31: 0 | K31: =SUM(G31*J31%)+G31 -> 1382.940757 | L31: 27658.81513 | N31: 132.9407566 | O31: 2658.815132
C32: =IF('Data Capture Demand'!C41="","",'Data Capture Demand'!C41) -> Other | D32: ='Data Capture Demand'!D41 -> 0 | E32: ='Data Capture Demand'!G41 -> 0 | F32: =SUM(E32*'Data Capture Demand'!F41) -> 0 | G32: ='Revised Primary Baseline Tariff'!$D$11 -> 1382.940757 | H32: 0 | I32: 0 | J32: 0 | K32: =SUM(G32*J32%)+G32 -> 1382.940757 | L32: 0 | N32: 1382.940757 | O32: 0
C33: =IF('Data Capture Demand'!C42="","",'Data Capture Demand'!C42) -> Other | D33: ='Data Capture Demand'!D42 -> 0 | E33: ='Data Capture Demand'!G42 -> 0 | F33: =SUM(E33*'Data Capture Demand'!F42) -> 0 | G33: ='Revised Primary Baseline Tariff'!$D$11 -> 1382.940757 | H33: 0 | I33: 0 | J33: 0 | K33: =SUM(G33*J33%)+G33 -> 1382.940757 | L33: 0 | N33: 1382.940757 | O33: 0
C34: =IF('Data Capture Demand'!C43="","",'Data Capture Demand'!C43) -> Other | D34: ='Data Capture Demand'!D43 -> 0 | E34: ='Data Capture Demand'!G43 -> 0 | F34: =SUM(E34*'Data Capture Demand'!F43) -> 0 | G34: ='Revised Primary Baseline Tariff'!$D$11 -> 1382.940757 | H34: 0 | I34: 0 | J34: 0 | K34: =SUM(G34*J34%)+G34 -> 1382.940757 | L34: 0 | N34: 1382.940757 | O34: 0
C35: =IF('Data Capture Demand'!C44="","",'Data Capture Demand'!C44) -> Other | D35: ='Data Capture Demand'!D44 -> 0 | E35: ='Data Capture Demand'!G44 -> 0 | F35: =SUM(E35*'Data Capture Demand'!F44) -> 0 | G35: ='Revised Primary Baseline Tariff'!$D$11 -> 1382.940757 | H35: 0 | I35: 0 | J35: 0 | K35: =SUM(G35*J35%)+G35 -> 1382.940757 | L35: 0 | N35: 1382.940757 | O35: 0
C36: =IF('Data Capture Demand'!C45="","",'Data Capture Demand'!C45) -> Other | D36: ='Data Capture Demand'!D45 -> 0 | E36: ='Data Capture Demand'!G45 -> 0 | F36: =SUM(E36*'Data Capture Demand'!F45) -> 0 | G36: ='Revised Primary Baseline Tariff'!$D$11 -> 1382.940757 | H36: 0 | I36: 0 | J36: 0 | K36: 1382.940757 | L36: 0 | N36: 1382.940757 | O36: 0
C37: =IF('Data Capture Demand'!C46="","",'Data Capture Demand'!C46) -> Other | D37: ='Data Capture Demand'!D46 -> 0 | E37: ='Data Capture Demand'!G46 -> 0 | F37: =SUM(E37*'Data Capture Demand'!F46) -> 0 | G37: ='Revised Primary Baseline Tariff'!$D$11 -> 1382.940757 | H37: 0 | I37: 0 | J37: 0 | K37: 1382.940757 | L37: 0 | N37: 1382.940757 | O37: 0
C38: =IF('Data Capture Demand'!C47="","",'Data Capture Demand'!C47) -> Other | D38: ='Data Capture Demand'!D47 -> 0 | E38: ='Data Capture Demand'!G47 -> 0 | F38: =SUM(E38*'Data Capture Demand'!F47) -> 0 | G38: ='Revised Primary Baseline Tariff'!$D$11 -> 1382.940757 | H38: 0 | I38: 0 | J38: 0 | K38: 1382.940757 | L38: 0 | N38: 1382.940757 | O38: 0
C39: =IF('Data Capture Demand'!C48="","",'Data Capture Demand'!C48) -> Other | D39: ='Data Capture Demand'!D48 -> 0 | E39: ='Data Capture Demand'!G48 -> 0 | F39: =SUM(E39*'Data Capture Demand'!F48) -> 0 | G39: ='Revised Primary Baseline Tariff'!$D$11 -> 1382.940757 | H39: 0 | I39: 0 | J39: 0 | K39: 1382.940757 | L39: 0 | N39: 1382.940757 | O39: 0
C40: ='Data Capture Demand'!C38&" TOTAL" -> INSTITUTIONAL TOTAL | D40: =SUM(D30:D39) -> 22 | F40: =SUM(F30:F39) -> 27500 | H40: =SUM(H30:H39) -> 30424.69665 | L40: =SUM(L30:L39) -> 30424.69665 | O40: =SUM(O30:O39) -> 2924.696645
C42: SUBTOTAL | F42: =SUM(F40+F29+F23+F13) -> 1167500 | H42: =SUM(H40+H29+H23+H13) -> 1291666.667 | L42: =SUM(L40+L29+L23+L13) -> 1291666.667 | O42: =SUM(O40+O29+O23+O13) -> 124166.6667
C44: FULL COST | D44: ='Data Capture Costs'!E31 -> 1291666.667 | E44: CURRENT ACTUAL | K44: ANTICIPATED
E45: MONTHLY | G45: ANNUAL | K45: MONTHLY | M45: ANNUAL
E46: Current Revenue | F46: =F42 -> 1167500 | G46: =F46*12 -> 14010000 | K46: Revised Revenue | L46: =L42+'Strategic Decisions'!J20 -> 1291666.667 | M46: =L46*12 -> 15500000
E47: PROFIT\LOSS | F47: =F46-D44 -> -124166.6667 | G47: =F47*12 -> -1490000 | K47: PROFIT\LOSS | L47: =L46-D44 -> 0 | M47: =L47*12 -> 0
